bitfinex/quotes_BTCUSD_20240731
["timestamp","ask_amount","ask_price","bid_price","bid_amount"]
[1722415840669,2.13141421,66452.0,66451.0,0.7828992]
[1722415840824,2.13141421,66452.0,66451.0,0.781345]
[1722415841019,2.06711421,66452.0,66451.0,0.4819262]
[1722415841226,2.08965899,66452.0,66451.0,0.1809532]
[1722415841427,1.99947988,66452.0,66451.0,0.179399]
[1722415841621,2.11220377,66452.0,66451.0,0.179399]
[1722415842051,2.11220377,66452.0,66451.0,0.165399]
[1722415842627,2.11220377,66452.0,66451.0,0.177399]
[1722415842835,2.11220377,66452.0,66451.0,0.026913]
[1722415843040,2.14547988,66452.0,66451.0,0.012913]
[1722415843187,2.14547988,66452.0,66451.0,0.026913]
[1722415844093,2.14547988,66452.0,66451.0,0.0284672]
[1722415844317,2.14547988,66452.0,66451.0,0.026913]
[1722415844515,2.14547988,66452.0,66451.0,0.0284672]
[1722415845479,2.14547988,66452.0,66451.0,0.026913]
[1722415845885,2.59693288,66452.0,66451.0,0.026913]
[1722415846085,2.59693288,66452.0,66451.0,0.0284672]
[1722415848919,2.59693288,66452.0,66451.0,0.026913]
[1722415849538,2.59693288,66452.0,66451.0,0.0284672]
[1722415850586,2.59693288,66452.0,66451.0,0.026913]
[1722415852108,2.73226222,66452.0,66451.0,0.0284672]
[1722415852315,3.44528795,66452.0,66451.0,0.0284672]
[1722415852721,3.59752898,66452.0,66451.0,0.026913]
[1722415853285,3.59752898,66452.0,66451.0,0.0144672]
[1722415853409,3.59752898,66452.0,66451.0,0.0124672]
[1722415853831,3.59752898,66452.0,66451.0,0.0194672]
[1722415854031,3.44528837,66452.0,66451.0,0.0194672]
[1722415854233,3.44528837,66452.0,66451.0,0.017913]
[1722415854552,3.44528837,66452.0,66451.0,0.0189284]
[1722415854753,3.44528837,66452.0,66451.0,0.017913]
[1722415854754,3.59751485,66452.0,66451.0,0.017913]
[1722415854957,3.74820917,66452.0,66451.0,0.0194672]
[1722415855697,3.74820917,66452.0,66451.0,0.007913]
[1722415856103,3.74820917,66452.0,66451.0,0.008913]
[1722415856394,3.59598269,66452.0,66451.0,0.008913]
[1722415856619,3.59598269,66452.0,66451.0,0.001913]
[1722415856797,3.59598269,66452.0,66451.0,0.0024672]
[1722415856956,3.59698269,66452.0,66451.0,0.0024672]
[1722415857166,3.59998269,66452.0,66451.0,0.0024672]
[1722415857366,3.59898262,66452.0,66451.0,0.0024672]
[1722415857570,3.75116651,66452.0,66451.0,0.0024672]
[1722415857776,3.60198262,66452.0,66451.0,0.0024672]
[1722415857970,3.90295162,66452.0,66451.0,0.0024672]
[1722415858196,3.99995162,66452.0,66451.0,0.0024672]
[1722415858819,3.8492573,66452.0,66451.0,0.0024672]
[1722415859014,3.8492573,66452.0,66451.0,0.000913]
[1722415859224,3.8522573,66452.0,66451.0,0.000913]
[1722415859812,3.8462573,66452.0,66451.0,0.000913]
[1722415860192,3.8762573,66452.0,66451.0,0.000913]
[1722415860483,3.8762573,66452.0,66451.0,0.00171037]
[1722415860661,4.03395162,66452.0,66451.0,0.00171037]
[1722415860874,4.0369528,66452.0,66451.0,0.00271037]
[1722415861073,4.0369528,66452.0,66451.0,0.001913]
[1722415861512,4.0439528,66452.0,66451.0,0.00201004]
[1722415861819,4.0499528,66452.0,66451.0,0.00201004]
[1722415861961,4.0559528,66452.0,66451.0,0.001913]
[1722415862308,4.0559528,66452.0,66451.0,0.00294668]
[1722415862443,4.0559528,66452.0,66451.0,0.001913]
[1722415863282,4.0559528,66452.0,66451.0,0.0034672]
[1722415864126,4.04656724,66452.0,66451.0,0.0034672]
[1722415864333,4.03595283,66452.0,66451.0,0.0034672]
[1722415864544,3.88525851,66452.0,66451.0,0.0034672]
[1722415865812,3.88525851,66452.0,66451.0,0.001913]
[1722415866089,3.90525851,66452.0,66451.0,0.001913]
[1722415866259,3.90525851,66452.0,66451.0,0.0034672]
[1722415867565,3.88525845,66452.0,66451.0,0.0034672]
[1722415867768,3.88525845,66452.0,66451.0,0.001913]
[1722415867933,3.88525845,66452.0,66451.0,0.00306478]
[1722415869094,3.90525845,66452.0,66451.0,0.001913]
[1722415869528,3.90525845,66452.0,66451.0,0.00270184]
[1722415870087,3.90525845,66452.0,66451.0,0.001913]
[1722415870088,3.94791481,66452.0,66451.0,0.001913]
[1722415870261,3.94791481,66452.0,66451.0,0.00340976]
[1722415870481,4.09860913,66452.0,66451.0,0.00340976]
[1722415870666,4.09860913,66452.0,66451.0,0.001913]
[1722415870894,4.09881633,66452.0,66451.0,0.0034672]
[1722415871095,4.39978533,66452.0,66451.0,0.001913]
[1722415871298,4.39978533,66452.0,66451.0,0.0034672]
[1722415871496,4.55848533,66452.0,66451.0,0.0034672]
[1722415871875,4.55848533,66452.0,66451.0,0.001913]
[1722415872704,1.984751,66451.0,66450.0,3.000913]
[1722415872924,2.46132745,66451.0,66450.0,3.000913]
[1722415873320,2.46132745,66451.0,66450.0,2.979913]
[1722415874168,2.46432745,66451.0,66450.0,2.980913]
[1722415874367,2.46475871,66451.0,66450.0,2.980913]
[1722415874593,2.46775871,66451.0,66450.0,2.981913]
[1722415875431,2.46475871,66451.0,66450.0,2.980913]
[1722415875839,2.47875871,66451.0,66450.0,2.981913]
[1722415876020,2.47575871,66451.0,66450.0,2.980913]
[1722415876226,2.46175871,66451.0,66450.0,2.979913]
[1722415876426,2.47575871,66451.0,66450.0,2.979913]
[1722415876655,2.48975871,66451.0,66450.0,2.979913]
[1722415877032,2.47575871,66451.0,66450.0,2.979913]
[1722415877782,2.82278496,66451.0,66450.0,2.74869652]
[1722415877984,2.82278496,66451.0,66450.0,2.71240352]
[1722415878415,2.57674348,66451.0,66450.0,2.71240352]
[1722415878610,2.36217048,66451.0,66450.0,2.71240352]
[1722415879238,2.37217048,66451.0,66450.0,2.71240352]
[1722415879441,2.36217048,66451.0,66450.0,2.71240352]
[1722415880156,2.35278404,66451.0,66450.0,2.71240352]
[1722415880306,2.51286479,66451.0,66450.0,2.71240352]
[1722415881090,2.50347836,66451.0,66450.0,2.71240352]
[1722415881296,2.53286479,66451.0,66450.0,2.71240352]
[1722415881493,2.51286479,66451.0,66450.0,2.71240352]
[1722415881677,2.53286479,66451.0,66450.0,2.71240352]
[1722415882819,2.51286479,66451.0,66450.0,2.71240352]
[1722415882990,2.53286479,66451.0,66450.0,2.71240352]
[1722415883217,2.57637997,66451.0,66450.0,2.71240352]
[1722415885257,2.80374247,66451.0,66450.0,2.71240352]
[1722415885625,2.65172713,66451.0,66450.0,2.69557452]
[1722415885839,2.80374247,66451.0,66450.0,2.69557452]
[1722415886248,2.72839531,66451.0,66450.0,2.69557452]
[1722415887212,2.57637997,66451.0,66450.0,2.69557452]
[1722415887916,2.52347836,66451.0,66450.0,2.69557452]
[1722415888151,2.57631677,66451.0,66450.0,2.69557452]
[1722415891271,2.52347836,66451.0,66450.0,2.69557452]
[1722415891494,2.57637281,66451.0,66450.0,2.69557452]
[1722415893123,2.79833771,66451.0,66450.0,2.69557452]
[1722415894686,2.74554681,66451.0,66450.0,2.69557452]
[1722415894909,2.7984494,66451.0,66450.0,2.69557452]
[1722415895117,2.52347836,66451.0,66450.0,2.69557452]
[1722415895492,2.50347836,66451.0,66450.0,2.69557452]
[1722415895759,2.28032927,66451.0,66450.0,2.69557452]
[1722415895960,1.40986195,66451.0,66450.0,2.77427452]
[1722415896193,1.33203804,66451.0,66450.0,2.84077452]
[1722415896378,1.03106504,66451.0,66450.0,2.84077452]
[1722415897800,1.04044971,66451.0,66450.0,2.84077452]
[1722415898773,0.42450371,66451.0,66450.0,2.84077452]
[1722415898951,0.41050371,66451.0,66450.0,2.84077452]
[1722415899166,0.71147671,66451.0,66450.0,2.84277452]
[1722415899690,0.71147671,66451.0,66450.0,2.84077452]
[1722415899865,1.01344971,66451.0,66450.0,2.84677452]
[1722415900066,0.71247671,66451.0,66450.0,2.84677452]
[1722415900510,0.70309204,66451.0,66450.0,2.84677452]
[1722415900795,0.71247629,66451.0,66450.0,2.84677452]
[1722415900953,0.71247629,66451.0,66450.0,2.84977452]
[1722415903544,0.26101729,66451.0,66450.0,2.84977452]
[1722415903745,0.01038425,66451.0,66450.0,3.00026352]
[1722415904114,0.00183,66451.0,66450.0,3.30124152]
[1722415904494,0.13723551,66451.0,66450.0,3.30124152]
[1722415904894,0.00183,66451.0,66450.0,2.84977452]
[1722415905093,0.13721587,66451.0,66450.0,3.00026352]
[1722415905519,0.00183,66451.0,66450.0,3.00026352]
[1722415905928,0.00183,66451.0,66450.0,2.84977452]
[1722415906131,0.152316,66451.0,66450.0,2.84977452]
[1722415906335,0.00183,66451.0,66450.0,2.84977452]
[1722415906991,0.6792692,66451.0,66450.0,2.84977452]
[1722415907144,0.90489504,66451.0,66450.0,2.84977452]
[1722415910354,0.60392204,66451.0,66450.0,2.84977452]
[1722415911993,0.90489504,66451.0,66450.0,2.84977452]
[1722415913009,0.91427932,66451.0,66450.0,2.78327452]
[1722415913209,0.9142792,66451.0,66450.0,2.78327452]
[1722415913454,0.90489504,66451.0,66450.0,2.78327452]
[1722415914085,0.91427977,66451.0,66450.0,2.78327452]
[1722415915143,0.90489504,66451.0,66450.0,2.78327452]
[1722415915318,0.91427947,66451.0,66450.0,2.78327452]
[1722415915910,1.3204967,66451.0,66450.0,2.70457452]
[1722415916137,1.45884386,66451.0,66450.0,2.70457452]
[1722415917571,1.46775603,66451.0,66450.0,2.70457452]
[1722415918973,1.39240958,66451.0,66450.0,2.70457452]
[1722415919205,1.28716535,66451.0,66450.0,2.70457452]
[1722415920455,1.22416535,66451.0,66450.0,2.70457452]
[1722415922411,1.22416539,66451.0,66450.0,2.70457452]
[1722415924763,1.31056539,66451.0,66450.0,2.78017452]
[1722415925910,1.31056534,66451.0,66450.0,2.78017452]
[1722415930520,1.22416534,66451.0,66450.0,2.78017452]
[1722415930739,1.22416534,66451.0,66450.0,2.84147452]
[1722415931229,0.91428017,66451.0,66450.0,2.84147452]
[1722415931433,0.16349503,66451.0,66450.0,2.84147452]
[1722415931635,0.01121513,66451.0,66450.0,2.99196352]
[1722415931838,0.01121513,66451.0,66450.0,3.29294152]
[1722415932084,0.00183,66451.0,66450.0,3.29294152]
[1722415932494,0.00183,66451.0,66450.0,3.59391952]
[1722415932694,0.00183,66451.0,66450.0,3.89489752]
[1722415932695,0.09203895,66451.0,66450.0,3.89489752]
[1722415932872,0.00183,66451.0,66450.0,3.89489752]
[1722415933732,0.04692497,66451.0,66450.0,3.89489752]
[1722415934151,0.04692491,66451.0,66450.0,3.89489752]
[1722415934550,0.00183,66451.0,66450.0,3.89489752]
[1722415934960,0.00183,66451.0,66450.0,3.89189752]
[1722415935175,0.00183,66451.0,66450.0,3.59091952]
[1722415935308,0.04692491,66451.0,66450.0,3.58891952]
[1722415935889,0.00183,66451.0,66450.0,3.58891952]
[1722415936079,0.04691426,66451.0,66450.0,3.58891952]
[1722415936281,0.04691426,66451.0,66450.0,3.88989752]
[1722415936528,0.00183,66451.0,66450.0,3.88989752]
[1722415936733,0.00283,66451.0,66450.0,3.90189752]
[1722415937094,0.00283,66451.0,66450.0,3.91189752]
[1722415937255,0.00283,66451.0,66450.0,3.90189752]
[1722415938100,0.00283,66451.0,66450.0,4.06253056]
[1722415938275,0.00283,66451.0,66450.0,4.36350856]
[1722415938708,0.00183,66451.0,66450.0,4.36150856]
[1722415939214,0.00283,66451.0,66450.0,4.49657918]
[1722415939440,0.00283,66451.0,66450.0,4.49457918]
[1722415939636,0.00183,66451.0,66450.0,4.58457918]
[1722415939911,0.00083,66451.0,66450.0,4.57257918]
[1722415940115,0.00083,66451.0,66450.0,4.58657918]
[1722415940334,0.00083,66451.0,66450.0,4.60857918]
[1722415941722,0.00083,66451.0,66450.0,4.62257918]
[1722415941926,0.00083,66451.0,66450.0,4.62257638]
[1722415942187,0.00083,66451.0,66450.0,4.49750856]
[1722415943169,0.00083,66451.0,66450.0,4.50664301]
[1722415943747,0.00083,66451.0,66450.0,4.56693901]
[1722415948430,0.00083,66451.0,66450.0,4.86791701]
[1722415949447,0.00083,66451.0,66450.0,5.01597713]
[1722415949900,0.00083,66451.0,66450.0,4.99397713]
[1722415950146,0.00083,66451.0,66450.0,5.01597713]
[1722415951109,0.83259569,66452.0,66451.0,1.846051]
[1722415951336,0.65992467,66452.0,66451.0,2.61780132]
[1722415951537,0.65992467,66452.0,66451.0,2.57634189]
[1722415951538,0.53972427,66452.0,66451.0,2.57634189]
[1722415951740,0.53972427,66452.0,66451.0,2.87617432]
[1722415951941,0.41933627,66452.0,66451.0,2.87617432]
[1722415952200,0.30593927,66452.0,66451.0,2.87772852]
[1722415952389,0.30593927,66452.0,66451.0,2.89172852]
[1722415952390,0.08347294,66452.0,66451.0,2.89172852]
[1722415952595,0.00083,66474.0,66473.0,1.144659]
[1722415952780,0.00083,66474.0,66473.0,1.221059]
[1722415954208,0.00083,66474.0,66473.0,1.235059]
[1722415955021,0.00183,66474.0,66473.0,1.249059]
[1722415958491,0.00183,66474.0,66473.0,1.40969204]
[1722415958713,0.00183,66474.0,66473.0,1.73056604]
[1722415958908,0.00183,66474.0,66473.0,1.73946383]
[1722415959133,0.00183,66474.0,66473.0,1.74146383]
[1722415959559,0.00183,66474.0,66473.0,2.16533783]
[1722415959815,0.00183,66474.0,66473.0,2.29035633]
[1722415960277,0.00183,66474.0,66473.0,2.44905633]
[1722415960501,0.00183,66474.0,66473.0,1.97548233]
[1722415960738,0.00183,66474.0,66473.0,1.93048233]
[1722415960972,0.00183,66474.0,66473.0,1.96448233]
[1722415961218,0.00183,66474.0,66473.0,1.94448233]
[1722415961447,0.00183,66474.0,66473.0,1.96448233]
[1722415961704,0.00183,66474.0,66473.0,1.95048233]
[1722415962138,0.00183,66474.0,66473.0,1.95248233]
[1722415962775,0.00183,66474.0,66473.0,2.01275633]
[1722415962987,0.00083,66474.0,66473.0,1.99876328]
[1722415963196,0.00083,66474.0,66473.0,2.14176328]
[1722415963409,0.00083,66474.0,66473.0,2.15576328]
[1722415963886,0.00083,66474.0,66473.0,2.14176328]
[1722415964332,0.00083,66474.0,66473.0,2.15576328]
[1722415966258,0.00083,66474.0,66473.0,2.15576203]
[1722415976432,0.00083,66474.0,66473.0,2.03073783]
[1722415976685,0.00083,66474.0,66473.0,2.15576257]
[1722415977156,0.00044118,66474.0,66473.0,2.15576257]
[1722415978596,0.00044118,66474.0,66473.0,2.39566817]
[1722415979862,0.00044118,66474.0,66473.0,2.3432994]
[1722415982239,0.06664118,66474.0,66473.0,2.3432994]
[1722415982596,0.06664118,66474.0,66473.0,2.3212994]
[1722415982796,0.06664118,66474.0,66473.0,1.91836246]
[1722415982999,0.06664118,66474.0,66473.0,1.83676246]
[1722415985336,0.06664118,66474.0,66473.0,1.92296246]
[1722415986532,0.06664118,66474.0,66473.0,1.94296548]
[1722415986744,0.06664118,66474.0,66473.0,1.94496548]
[1722415989776,0.06664118,66474.0,66473.0,1.94496478]
[1722415993148,0.06664118,66474.0,66473.0,1.94496582]
[1722415999894,0.14414118,66474.0,66473.0,1.07438478]
[1722416000117,0.18928589,66474.0,66473.0,0.47263678]
[1722416000340,0.23443061,66474.0,66473.0,0.31236278]
[1722416000548,0.14414118,66474.0,66473.0,0.48820879]
[1722416000944,0.14414118,66474.0,66473.0,0.47420879]
[1722416001121,0.25690193,66474.0,66473.0,0.47420879]
[1722416001319,0.14396012,66474.0,66473.0,0.78908279]
[1722416001545,0.14396012,66474.0,66473.0,0.48820879]
[1722416001950,0.14396012,66474.0,66473.0,0.78908279]
[1722416002176,0.25688965,66474.0,66473.0,0.78908279]
[1722416002396,0.23430234,66474.0,66473.0,0.78908279]
[1722416002598,0.23430234,66474.0,66473.0,0.48820879]
[1722416002912,0.23430234,66474.0,66473.0,0.78908279]
[1722416002913,0.14396012,66474.0,66473.0,0.78908279]
[1722416003290,0.14396012,66474.0,66473.0,0.48820879]
[1722416003506,0.23428673,66474.0,66473.0,0.47420879]
[1722416003705,0.23428673,66474.0,66473.0,0.48820879]
[1722416003952,0.23428673,66474.0,66473.0,0.03689779]
[1722416004167,0.25688092,66474.0,66473.0,0.18733479]
[1722416004376,0.25688092,66474.0,66473.0,0.178437]
[1722416004542,0.14396012,66474.0,66473.0,0.178437]
[1722416004736,0.14396012,66474.0,66473.0,0.465311]
[1722416005047,0.23427928,66474.0,66473.0,0.465311]
[1722416005459,0.14396012,66474.0,66473.0,0.479311]
[1722416005638,0.23427048,66474.0,66473.0,0.479311]
[1722416006455,0.14396012,66474.0,66473.0,0.479311]
[1722416006694,0.23426381,66474.0,66473.0,0.479311]
[1722416007531,0.23426381,66474.0,66473.0,0.480224]
[1722416009459,0.14396012,66474.0,66473.0,1.081972]
[1722416009749,0.13416999,66474.0,66473.0,1.081972]
[1722416009948,0.13416913,66474.0,66473.0,1.081972]
[1722416010328,0.13416913,66474.0,66473.0,1.168172]
[1722416010537,0.06646012,66474.0,66473.0,1.168172]
[1722416011170,0.11159761,66474.0,66473.0,1.168172]
[1722416011610,0.06646012,66474.0,66473.0,1.081972]
[1722416013525,0.06646012,66474.0,66473.0,0.781098]
[1722416013727,0.11159509,66474.0,66473.0,0.781098]
[1722416013929,0.06646012,66474.0,66473.0,0.781098]
[1722416017192,0.13416301,66474.0,66473.0,0.781098]
[1722416017439,0.06646012,66474.0,66473.0,0.781098]
[1722416017691,0.13416295,66474.0,66473.0,0.781098]
[1722416018181,0.06646012,66474.0,66473.0,0.781098]
[1722416018436,0.13416066,66474.0,66473.0,0.781098]
[1722416020118,0.06646012,66474.0,66473.0,0.781098]
[1722416020404,0.13416121,66474.0,66473.0,0.781098]
[1722416023282,0.06646012,66474.0,66473.0,0.781098]
[1722416023520,0.13416361,66474.0,66473.0,0.781098]
[1722416025093,0.15672825,66474.0,66473.0,0.480224]
[1722416025565,0.06646012,66474.0,66473.0,0.17935]
[1722416025778,0.06646012,66474.0,66473.0,0.480224]
[1722416027051,0.15673887,66474.0,66473.0,0.480224]
[1722416027291,0.06646012,66474.0,66473.0,0.480224]
[1722416028154,0.17931275,66474.0,66473.0,0.480224]
[1722416028367,0.68496312,66474.0,66473.0,0.028913]
[1722416028584,0.82038272,66474.0,66473.0,0.028913]
[1722416028797,0.69828826,66474.0,66473.0,0.028913]
[1722416029439,0.69828826,66474.0,66473.0,0.014913]
[1722416029648,0.69828826,66474.0,66473.0,0.028913]
[1722416030302,0.69858877,66474.0,66473.0,0.028913]
[1722416030512,0.99945777,66474.0,66473.0,0.028913]
[1722416030933,0.99945777,66474.0,66473.0,0.014913]
[1722416031141,0.99945777,66474.0,66473.0,0.028913]
[1722416031557,0.99945777,66474.0,66473.0,0.014913]
[1722416031734,0.99945777,66474.0,66473.0,0.028913]
[1722416032587,0.99945777,66474.0,66473.0,0.014913]
[1722416032806,1.00045777,66474.0,66473.0,0.025913]
[1722416033504,1.30132677,66474.0,66473.0,0.025913]
[1722416035652,1.45195981,66474.0,66473.0,0.025913]
[1722416035885,1.45195981,66474.0,66456.0,0.000913]
[1722416035886,0.300905,66466.0,66456.0,0.000913]
[1722416036106,0.139,66458.0,66456.0,0.000913]
[1722416036327,0.15117446,66457.0,66456.0,0.000913]
[1722416036540,0.58003529,66457.0,66456.0,0.000913]
[1722416036756,1.09028308,66457.0,66456.0,0.000913]
[1722416036973,1.09026539,66457.0,66456.0,0.000913]
[1722416037215,0.977565,66457.0,66456.0,0.000913]
[1722416037653,1.09122452,66457.0,66456.0,0.014913]
[1722416037894,0.978565,66457.0,66456.0,0.014913]
[1722416038107,0.977565,66457.0,66456.0,0.000913]
[1722416038315,0.676619,66457.0,66456.0,0.000913]
[1722416038753,0.22910168,66457.0,66456.0,0.011913]
[1722416039183,0.289473,66457.0,66456.0,0.011913]
[1722416039606,0.290473,66457.0,66456.0,0.019913]
[1722416040751,0.290473,66457.0,66456.0,0.008913]
[1722416040957,0.208548,66457.0,66456.0,0.018913]
[1722416041171,0.291473,66457.0,66456.0,0.018913]
[1722416041380,0.141,66457.0,66456.0,0.008913]
[1722416041601,0.142,66457.0,66456.0,0.018913]
[1722416041832,0.292473,66457.0,66456.0,0.018913]
[1722416042265,0.003,66457.0,66456.0,0.121913]
[1722416042482,0.003,66457.0,66456.0,1.32587404]
[1722416043130,0.002,66457.0,66456.0,1.31787404]
[1722416043334,0.002,66457.0,66456.0,1.29187404]
[1722416043547,0.003,66457.0,66456.0,1.29187404]
[1722416043756,0.003,66457.0,66456.0,1.131241]
[1722416043757,0.001,66457.0,66456.0,1.131241]
[1722416043963,0.0663,66458.0,66457.0,0.752365]
[1722416045216,0.0673,66458.0,66457.0,0.766365]
[1722416045442,0.0673,66458.0,66457.0,1.067311]
[1722416046526,0.0673,66458.0,66457.0,1.079311]
[1722416046963,0.0673,66458.0,66457.0,1.73559004]
[1722416046964,0.001,66458.0,66457.0,1.73559004]
[1722416047172,0.001,66458.0,66457.0,1.85559004]
[1722416047441,0.001,66458.0,66457.0,1.85759004]
[1722416047648,0.001,66458.0,66457.0,1.83559004]
[1722416048071,0.06753445,66472.0,66468.0,0.300895]
[1722416048286,0.04502565,66471.0,66470.0,0.45133]
[1722416048502,0.06753445,66473.0,66468.0,0.300895]
[1722416048503,0.07534716,66472.0,66468.0,0.300895]
[1722416048718,0.1209268,66470.0,66469.0,0.15101486]
[1722416048937,0.1413,66470.0,66469.0,0.15101486]
[1722416050422,0.1413,66470.0,66469.0,0.00056986]
[1722416050647,0.1384,66470.0,66467.0,0.00056986]
[1722416050855,0.1384,66470.0,66457.0,0.33313304]
[1722416050856,0.04503102,66468.0,66457.0,0.33313304]
[1722416051079,0.04503102,66468.0,66467.0,0.451351]
[1722416051298,0.06754654,66469.0,66468.0,0.150446]
[1722416051716,0.06754654,66469.0,66468.0,0.15101586]
[1722416052141,0.06754654,66469.0,66468.0,0.150446]
[1722416052350,0.13004654,66470.0,66468.0,0.150446]
[1722416052602,0.13004654,66470.0,66469.0,0.00056986]
[1722416053648,0.0625,66470.0,66469.0,0.15101586]
[1722416053858,0.13004908,66470.0,66469.0,0.150446]
[1722416054063,0.13004908,66470.0,66468.0,0.01256986]
[1722416054273,0.15516544,66469.0,66468.0,0.00056986]
[1722416054497,0.15516544,66469.0,66463.0,0.300917]
[1722416054498,0.0651,66469.0,66466.0,0.150452]
[1722416054712,0.0651,66469.0,66465.0,0.00056986]
[1722416054713,0.09007692,66468.0,66465.0,0.00056986]
[1722416054923,0.06755775,66466.0,66460.0,0.300932]
[1722416055171,0.04503865,66464.0,66462.0,0.15046]
[1722416055379,0.04503865,66464.0,66463.0,0.150459]
[1722416055590,0.04503865,66464.0,66462.0,0.150461]
[1722416055808,0.10693865,66464.0,66463.0,0.00056986]
[1722416056020,0.10693865,66464.0,66460.0,0.150466]
[1722416056021,0.0615,66463.0,66460.0,0.150466]
[1722416056232,0.0675632,66462.0,66461.0,0.150463]
[1722416056455,0.1290632,66463.0,66461.0,0.150463]
[1722416056668,0.0450437,66462.0,66459.0,0.300935]
[1722416056877,0.15157692,66463.0,66461.0,0.150464]
[1722416057099,0.06756685,66462.0,66461.0,0.150464]
[1722416057596,0.0625,66463.0,66462.0,0.164461]
[1722416057808,0.0615,66463.0,66462.0,0.150461]
[1722416058236,0.0625,66463.0,66462.0,0.150461]
[1722416059727,0.15159695,66463.0,66462.0,0.150461]
[1722416059934,0.15259695,66463.0,66462.0,0.164461]
[1722416060138,0.0625,66463.0,66462.0,0.164461]
[1722416060767,0.15260282,66463.0,66462.0,0.164461]
[1722416061177,0.15260282,66463.0,66462.0,0.178461]
[1722416061791,0.15260282,66463.0,66462.0,0.028]
[1722416062801,0.15260282,66463.0,66462.0,0.178461]
[1722416063299,0.15262591,66463.0,66462.0,0.178461]
[1722416063502,0.0625,66463.0,66462.0,0.178461]
[1722416063684,0.15262591,66463.0,66462.0,0.178461]
[1722416063889,0.0625,66463.0,66462.0,0.178461]
[1722416064519,0.0625,66463.0,66462.0,0.028]
[1722416064729,0.17516436,66463.0,66462.0,0.028]
[1722416065363,0.32562336,66463.0,66462.0,0.028]
[1722416065580,0.513878,66463.0,66462.0,0.028]
[1722416066402,0.212959,66463.0,66462.0,0.028]
[1722416066617,0.0625,66463.0,66462.0,0.028]
[1722416067246,0.212959,66463.0,66462.0,0.028]
[1722416067461,0.0625,66463.0,66462.0,0.028]
[1722416067885,0.212959,66463.0,66462.0,0.028]
[1722416071833,0.212959,66463.0,66462.0,0.028913]
[1722416072641,0.34830097,66463.0,66462.0,0.028913]
[1722416073492,0.212959,66463.0,66462.0,0.028913]
[1722416073899,0.0625,66463.0,66462.0,0.028913]
[1722416074327,0.212959,66463.0,66462.0,0.028913]
[1722416075433,0.001,66463.0,66462.0,0.438536]
[1722416075645,0.06870733,66463.0,66462.0,0.88992]
[1722416075875,0.001,66463.0,66462.0,1.190843]
[1722416076086,0.06870825,66463.0,66462.0,1.190843]
[1722416076511,0.001,66463.0,66462.0,1.190843]
[1722416077230,0.04613584,66463.0,66462.0,1.190843]
[1722416077691,0.04613486,66463.0,66462.0,1.190843]
[1722416078360,0.001,66463.0,66462.0,1.190843]
[1722416078784,0.001,66463.0,66462.0,1.19992205]
[1722416079348,0.001,66463.0,66462.0,1.50084505]
[1722416081125,0.001,66463.0,66462.0,2.00540109]
[1722416081327,0.00026012,66474.0,66473.0,1.155359]
[1722416081559,0.00026012,66474.0,66473.0,1.456233]
[1722416083106,0.00126012,66474.0,66473.0,1.470233]
[1722416083529,0.00126012,66474.0,66473.0,1.484233]
[1722416086936,0.00126012,66474.0,66473.0,1.458233]
[1722416089035,0.00126012,66474.0,66473.0,1.46726338]
[1722416089761,0.06696012,66474.0,66473.0,1.46726338]
[1722416090479,0.06696012,66474.0,66473.0,1.081059]
[1722416094889,0.06696012,66474.0,66473.0,0.479311]
[1722416095503,0.06696012,66474.0,66473.0,0.780185]
[1722416095713,0.06696012,66474.0,66473.0,0.479311]
[1722416096115,0.06696012,66474.0,66473.0,0.780185]
[1722416096716,0.06696012,66474.0,66473.0,0.479311]
[1722416097225,0.11198874,66474.0,66473.0,0.479311]
[1722416097425,0.06696012,66474.0,66473.0,0.780185]
[1722416097971,0.06696012,66474.0,66473.0,0.479311]
[1722416098492,0.13451544,66474.0,66473.0,0.028]
[1722416098749,0.06696012,66474.0,66473.0,0.028]
[1722416098971,0.17955232,66474.0,66473.0,0.028]
[1722416099202,0.15702089,66474.0,66473.0,0.028]
[1722416099926,0.06696012,66474.0,66473.0,0.164437]
[1722416100189,0.06696012,66474.0,66473.0,0.014]
[1722416100456,0.17853608,66474.0,66472.0,0.150438]
[1722416100663,0.11283608,66474.0,66473.0,0.022]
[1722416101076,0.15069412,66474.0,66473.0,0.022]
[1722416101293,0.63064383,66474.0,66473.0,0.022]
[1722416101503,0.89663212,66474.0,66473.0,0.022]
[1722416101925,0.89663212,66474.0,66473.0,0.012]
[1722416102133,0.150444,66470.0,66465.0,0.150453]
[1722416102371,0.0658,66466.0,66465.0,0.150453]
[1722416102594,0.13335722,66466.0,66465.0,0.150453]
[1722416104280,0.13335722,66466.0,66465.0,0.451363]
[1722416104686,0.13335722,66466.0,66465.0,0.464363]
[1722416105317,0.13335722,66466.0,66465.0,0.163453]
[1722416105525,0.13335722,66466.0,66465.0,0.177453]
[1722416105739,0.13335722,66466.0,66465.0,0.478363]
[1722416105952,0.0658,66466.0,66465.0,0.177455]
[1722416106171,0.0658,66466.0,66465.0,0.027]
[1722416106172,0.13336019,66466.0,66465.0,0.027]
[1722416106398,0.0658,66466.0,66465.0,0.027]
[1722416106618,0.15588025,66466.0,66465.0,0.027]
[1722416106827,0.0658,66466.0,66465.0,0.027]
[1722416107715,0.517157,66466.0,66465.0,0.027]
[1722416107917,0.593657,66466.0,66465.0,0.027]
[1722416108117,0.292752,66466.0,66465.0,0.027]
[1722416109100,0.593657,66466.0,66465.0,0.027]
[1722416109734,0.292752,66466.0,66465.0,0.027]
[1722416109938,0.593657,66466.0,66465.0,0.027]
[1722416111017,0.894562,66466.0,66465.0,0.027]
[1722416112269,0.894562,66466.0,66465.0,0.013]
[1722416112690,0.894562,66466.0,66465.0,0.002]
[1722416116090,1.04519504,66466.0,66465.0,0.002]
[1722416116295,1.1931455,66466.0,66465.0,0.002]
[1722416116506,1.05802334,66466.0,66465.0,0.002]
[1722416116715,1.18031675,66466.0,66465.0,0.002]
[1722416117157,1.19314725,66466.0,66465.0,0.002]
[1722416117369,1.05802554,66466.0,66465.0,0.002]
[1722416117587,1.04519504,66466.0,66465.0,0.002]
[1722416118700,1.49409219,66466.0,66465.0,0.002]
[1722416118927,1.19318719,66466.0,66465.0,0.002]
[1722416119137,1.05807431,66466.0,66465.0,0.002]
[1722416119346,1.05807431,66466.0,66463.0,0.000913]
[1722416119347,0.752285,66464.0,66463.0,0.000913]
[1722416119609,0.96291804,66464.0,66463.0,0.000913]
[1722416120819,0.96291804,66464.0,66463.0,0.001913]